bitfinex/quotes_ETHUSD_20251128
["timestamp","ask_amount","ask_price","bid_price","bid_amount"]
[1764304562696,0.78100236,3021.4,3021.3,1.17049902]
[1764304563209,0.78100236,3021.4,3020.8,0.001]
[1764304563210,1.23230236,3021.4,3020.8,0.001]
[1764304563425,0.1894,3021.7,3020.8,0.001]
[1764304563426,1.23217517,3021.3,3020.8,0.001]
[1764304563584,0.30978541,3021.2,3020.9,0.72559411]
[1764304563914,0.4513,3021.2,3020.9,0.72559411]
[1764304564207,0.4513,3021.2,3021.0,0.209]
[1764304564715,0.4711,3021.1,3021.0,0.209]
[1764304565213,0.9224,3021.1,3021.0,0.209]
[1764304565583,0.1894,3021.7,3021.1,0.72559411]
[1764304565788,0.4711,3021.2,3021.1,0.72559411]
[1764304566012,0.4711,3021.2,3021.0,0.209]
[1764304566206,0.9224,3021.2,3021.0,0.209]
[1764304567914,0.9224,3021.1,3021.0,0.209]
[1764304568507,0.9224,3021.1,3020.8,0.72659411]
[1764304568715,3.30995554,3021.2,3020.8,0.001]
[1764304568716,0.6605,3020.9,3020.8,0.001]
[1764304569096,1.1118,3020.9,3020.8,0.001]
[1764304571718,1.1118,3020.9,3020.8,0.72659411]
[1764304572111,1.1118,3020.9,3020.8,0.001]
[1764304573317,1.1118,3020.9,3020.8,0.72659411]
[1764304573838,1.1118,3020.9,3020.8,0.001]
[1764304576413,1.46474047,3020.9,3020.8,0.001]
[1764304576708,4.77501224,3020.9,3020.8,0.001]
[1764304576944,5.6044299,3020.9,3020.8,0.001]
[1764304582521,5.63751743,3020.9,3020.8,0.001]
[1764304588847,5.73751743,3020.9,3020.8,0.001]
[1764304589259,6.45045624,3020.9,3020.8,0.001]
[1764304591077,6.45083919,3020.9,3020.8,0.001]
[1764304591682,6.35083919,3020.9,3020.4,0.001]
[1764304591981,1.13109811,3020.4,3020.1,0.001]
[1764304592188,0.555,3020.2,3020.1,0.001]
[1764304592344,1.57726223,3020.2,3020.1,0.001]
[1764304592544,2.46523292,3020.2,3020.1,0.001]
[1764304592762,2.34596005,3020.2,3020.1,0.001]
[1764304592981,2.44596005,3020.2,3020.1,0.001]
[1764304593183,11.6250614,3020.2,3020.1,0.001]
[1764304593572,11.64652944,3020.2,3020.1,0.001]
[1764304593772,11.31584882,3020.2,3020.1,0.001]
[1764304593950,11.64652944,3020.2,3020.1,0.001]
[1764304594350,11.31584882,3020.2,3020.1,0.001]
[1764304594790,11.64652944,3020.2,3020.1,0.001]
[1764304595155,11.95584678,3020.2,3020.1,0.001]
[1764304595481,11.62516616,3020.2,3020.1,0.001]
[1764304595893,11.95584678,3020.2,3020.1,0.001]
[1764304597258,11.62516616,3020.2,3020.1,0.001]
[1764304597480,11.95584678,3020.2,3020.1,0.001]
[1764304598709,12.84726809,3020.2,3020.1,0.001]
[1764304598879,1.56177873,3020.1,3020.0,0.001]
[1764304599070,5.2798824,3020.1,3020.0,0.001]
[1764304599275,0.83618462,3019.7,3019.6,0.001]
[1764304599473,7.1988662,3019.7,3019.6,0.001]
[1764304599691,11.37355001,3019.7,3019.6,0.001]
[1764304599886,11.50626379,3019.7,3019.6,0.001]
[1764304600085,11.50626379,3019.7,3018.7,0.001]
[1764304600086,0.83618462,3019.4,3018.7,0.001]
[1764304600284,7.06306031,3019.4,3018.7,0.001]
[1764304600489,8.27269912,3019.4,3018.7,0.001]
[1764304601374,11.58461539,3019.4,3018.7,0.001]
[1764304602207,12.57791209,3019.4,3018.7,0.001]
[1764304602510,14.25602563,3019.4,3018.7,0.001]
[1764304603085,0.83618462,3019.2,3018.7,0.001]
[1764304603286,6.60825807,3019.2,3018.7,0.001]
[1764304603501,7.10495807,3019.2,3018.7,0.001]
[1764304603692,7.07187054,3019.2,3018.7,0.001]
[1764304603998,8.42265766,3019.2,3018.7,0.001]
[1764304604401,9.41595436,3019.2,3018.7,0.001]
[1764304605509,9.10663702,3019.2,3018.7,0.001]
[1764304605718,9.41435135,3019.2,3018.7,0.001]
[1764304606025,9.54709375,3019.2,3018.7,0.001]
[1764304607124,8.01411643,3019.2,3018.7,0.001]
[1764304607297,8.22311643,3019.2,3018.7,0.001]
[1764304611230,8.55379705,3019.2,3018.7,0.001]
[1764304613141,8.22311643,3019.2,3018.7,0.001]
[1764304614243,8.55379705,3019.2,3018.7,0.001]
[1764304614945,8.22311643,3019.2,3018.7,0.001]
[1764304615714,8.55379705,3019.2,3018.7,0.001]
[1764304616359,8.55379705,3019.2,3017.6,0.001]
[1764304616360,0.405504,3018.0,3017.6,0.001]
[1764304616578,0.405504,3018.0,3017.3,0.001]
[1764304616579,0.875504,3017.6,3017.3,0.001]
[1764304616845,6.43806235,3017.4,3017.3,0.001]
[1764304617052,7.95313661,3017.4,3017.3,0.001]
[1764304617250,8.87146705,3017.4,3017.3,0.001]
[1764304617818,12.51625915,3017.4,3017.3,0.001]
[1764304618036,12.18557853,3017.4,3017.3,0.001]
[1764304618546,7.98829491,3017.4,3017.3,0.001]
[1764304619419,7.65761429,3017.4,3017.3,0.001]
[1764304620044,7.98829491,3017.4,3017.3,0.001]
[1764304620219,7.65761429,3017.4,3017.3,0.001]
[1764304620422,7.98829491,3017.4,3017.3,0.001]
[1764304620825,7.65761429,3017.4,3017.3,0.001]
[1764304621038,7.98829491,3017.4,3017.3,0.001]
[1764304621425,8.66764581,3017.4,3017.3,0.001]
[1764304621624,8.54696519,3017.4,3017.3,0.001]
[1764304622072,8.67978208,3017.4,3017.3,0.001]
[1764304622360,7.79143118,3017.4,3017.3,0.001]
[1764304622557,5.19089674,3017.4,3017.3,0.001]
[1764304622755,5.40016738,3017.4,3017.3,0.001]
[1764304622957,6.36686738,3017.4,3017.3,0.001]
[1764304623157,5.40016738,3017.4,3017.3,0.001]
[1764304623361,3.86491334,3017.4,3017.3,0.001]
[1764304623561,4.83161334,3017.4,3017.3,0.001]
[1764304623748,4.41389901,3017.4,3017.3,0.001]
[1764304623957,4.93219313,3017.4,3017.3,0.001]
[1764304624146,5.75681195,3017.4,3017.3,0.001]
[1764304624459,7.59818983,3017.4,3017.3,0.001]
[1764304624663,7.5651023,3017.4,3017.3,0.001]
[1764304625961,14.07326778,3017.4,3017.3,0.001]
[1764304626161,13.99607673,3017.4,3017.3,0.001]
[1764304626366,14.20607673,3017.4,3017.3,0.001]
[1764304627446,13.87539611,3017.4,3017.3,0.001]
[1764304627651,14.20607673,3017.4,3017.3,0.001]
[1764304628873,15.09442763,3017.4,3017.3,0.001]
[1764304629470,14.76374701,3017.4,3017.3,0.001]
[1764304629674,15.09442763,3017.4,3017.3,0.001]
[1764304630082,14.76374701,3017.4,3017.3,0.001]
[1764304630271,15.09442763,3017.4,3017.3,0.001]
[1764304632675,14.88442763,3017.4,3017.3,0.001]
[1764304632993,6.99121125,3017.4,3017.3,0.001]
[1764304633296,7.67581125,3017.4,3017.3,0.001]
[1764304633960,7.46581125,3017.4,3017.3,0.001]
[1764304634165,6.5984023,3017.4,3017.3,0.001]
[1764304634497,6.63148983,3017.4,3017.3,0.001]
[1764304635711,6.53148983,3017.4,3017.3,0.001]
[1764304635914,6.63148983,3017.4,3017.3,0.001]
[1764304636323,5.09136701,3017.4,3017.3,0.001]
[1764304636618,5.30136701,3017.4,3017.3,0.001]
[1764304637819,4.3657729,3017.4,3017.3,0.001]
[1764304638021,3.86549313,3017.4,3017.3,0.001]
[1764304639937,3.65549313,3017.4,3017.3,0.001]
[1764304640089,3.86549313,3017.4,3017.3,0.001]
[1764304642328,4.57814124,3017.4,3017.3,0.001]
[1764304649133,5.05414124,3017.4,3017.3,0.001]
[1764304649337,5.51399064,3017.4,3017.3,0.001]
[1764304649719,5.30399064,3017.4,3017.3,0.001]
[1764304649919,5.51299064,3017.4,3017.3,0.001]
[1764304650121,4.57714124,3017.4,3017.3,0.001]
[1764304651833,5.64274124,3017.4,3017.3,0.001]
[1764304653549,4.57714124,3017.4,3017.3,0.001]
[1764304657337,4.36814124,3017.4,3017.3,0.001]
[1764304657546,4.57714124,3017.4,3017.3,0.001]
[1764304660461,5.06474124,3017.4,3017.3,0.001]
[1764304660667,5.53224124,3017.4,3017.3,0.001]
[1764304660845,5.06474124,3017.4,3017.3,0.001]
[1764304661162,4.57714124,3017.4,3017.3,0.001]
[1764304662038,5.06474124,3017.4,3017.3,0.001]
[1764304662238,4.57714124,3017.4,3017.3,0.001]
[1764304662746,4.36814124,3017.4,3017.3,0.001]
[1764304662945,4.57714124,3017.4,3017.3,0.001]
[1764304668057,4.36814124,3017.4,3017.3,0.001]
[1764304668376,4.57714124,3017.4,3017.3,0.001]
[1764304669646,4.36814124,3017.4,3017.3,0.001]
[1764304669845,4.57714124,3017.4,3017.3,0.001]
[1764304673256,1.02094223,3017.4,3017.3,0.001]
[1764304673467,0.30829412,3017.4,3017.3,3.79062839]
[1764304673959,0.30829412,3017.4,3017.3,0.47640707]
[1764304674350,0.30829412,3017.4,3017.3,0.001]
[1764304674987,3.6224056,3017.4,3017.3,0.001]
[1764304675488,3.8314056,3017.4,3017.3,0.001]
[1764304675855,3.86449313,3017.4,3017.3,0.001]
[1764304677582,4.35209313,3017.4,3017.3,0.001]
[1764304677770,4.81959313,3017.4,3017.3,0.001]
[1764304680491,5.63315269,3017.4,3017.3,0.001]
[1764304681686,4.81826746,3017.4,3017.3,0.001]
[1764304683496,4.35076746,3017.4,3017.3,0.001]
[1764304686305,4.81826746,3017.4,3017.3,0.001]
[1764304686709,4.35076746,3017.4,3017.3,0.001]
[1764304686879,5.53378262,3017.4,3017.3,0.001]
[1764304687070,6.41876113,3017.4,3017.3,0.001]
[1764304691580,4.57868262,3017.4,3017.3,0.001]
[1764304693585,4.36968262,3017.4,3017.3,0.001]
[1764304693785,4.57868262,3017.4,3017.3,0.001]
[1764304694507,4.58068262,3017.4,3017.3,0.001]
[1764304697520,5.52008262,3017.4,3017.3,0.001]
[1764304701724,4.58068262,3017.4,3017.3,0.001]
[1764304702710,5.03208262,3017.4,3017.3,0.001]
[1764304702917,4.58068262,3017.4,3017.3,0.001]
[1764304703812,5.03208262,3017.4,3017.3,0.001]
[1764304704012,5.52868262,3017.4,3017.3,0.001]
[1764304706637,4.58068262,3017.4,3017.3,0.001]
[1764304708136,6.40718636,3017.4,3017.3,0.001]
[1764304713847,4.37168262,3017.4,3017.3,0.001]
[1764304714153,4.58068262,3017.4,3017.3,0.001]
[1764304714850,4.37168262,3017.4,3017.3,0.001]
[1764304715152,4.58068262,3017.4,3017.3,0.001]
[1764304715848,1.23348361,3017.4,3017.3,0.001]
[1764304716345,1.02448361,3017.4,3017.3,0.001]
[1764304716551,1.23348361,3017.4,3017.3,0.001]
[1764304717152,4.54759509,3017.4,3017.3,0.001]
[1764304717331,1.23348361,3017.4,3017.3,0.001]
[1764304717742,4.54759509,3017.4,3017.3,0.001]
[1764304718257,1.23348361,3017.4,3017.3,0.001]
[1764304718763,4.54759509,3017.4,3017.3,0.001]
[1764304719145,4.58068262,3017.4,3017.3,0.001]
[1764304720357,5.50068262,3017.4,3017.3,0.001]
[1764304721064,5.03208262,3017.4,3017.3,0.001]
[1764304721465,4.58068262,3017.4,3017.3,0.001]
[1764304725562,4.54759509,3017.4,3017.3,0.001]
[1764304726238,1.02448361,3017.4,3017.3,0.001]
[1764304726568,1.23348361,3017.4,3017.3,0.001]
[1764304726864,0.30896845,3017.4,3017.3,0.001]
[1764304730639,0.30896845,3017.4,3017.3,0.33605629]
[1764304733273,0.31250095,3017.4,3017.3,0.33605629]
[1764304734751,0.31250095,3017.4,3017.3,0.001]
[1764304738066,1.27670095,3017.4,3017.3,0.001]
[1764304738375,1.27654109,3017.4,3017.3,0.001]
[1764304738682,0.31234109,3017.4,3017.3,0.001]
[1764304739174,0.31234109,3017.4,3017.3,4.7523213]
[1764304739380,0.31234109,3017.4,3017.3,5.23106776]
[1764304739574,0.31234109,3017.4,3017.3,0.47974646]
[1764304739879,0.31234109,3017.4,3017.3,0.001]
[1764304745802,0.80794109,3017.4,3017.3,0.001]
[1764304746132,4.59065257,3017.4,3017.3,0.001]
[1764304749736,1.27654109,3017.4,3017.3,0.001]
[1764304750036,4.59065257,3017.4,3017.3,0.001]
[1764304751547,1.27654109,3017.4,3017.3,0.001]
[1764304752044,0.31234109,3017.4,3017.3,0.001]
[1764304752215,3.62645257,3017.4,3017.3,0.001]
[1764304752416,0.31234109,3017.4,3017.3,0.001]
[1764304752812,0.52134109,3017.4,3017.3,0.001]
[1764304753215,0.31234109,3017.4,3017.3,0.001]
[1764304753416,0.52134109,3017.4,3017.3,0.001]
[1764304759138,0.31234109,3017.4,3017.3,0.001]
[1764304765158,1.29724109,3017.4,3017.3,0.001]
[1764304765552,0.31234109,3017.4,3017.3,0.001]
[1764304767030,0.31234109,3017.4,3017.3,0.3327441]
[1764304773360,1.29724109,3017.4,3017.3,0.3327441]
[1764304773569,1.29724109,3017.4,3017.3,0.001]
[1764304773948,0.31234109,3017.4,3017.3,0.001]
[1764304775785,0.31234109,3017.4,3017.1,3.30395651]
[1764304775970,0.31034109,3017.3,3017.1,3.30395651]
[1764304776167,0.31034109,3017.2,3017.1,3.30395651]
[1764304776371,0.31034109,3017.2,3017.1,0.7032924]
[1764304779996,0.31034109,3017.2,3017.0,0.001]
[1764304779997,1.29524109,3017.2,3017.0,0.001]
[1764304780154,0.31034109,3017.1,3017.0,0.001]
[1764304790675,0.31034109,3017.1,3017.0,0.0341455]
[1764304792791,1.29684109,3017.1,3017.0,0.001]
[1764304793762,1.29684109,3017.1,3017.0,0.0341455]
[1764304794189,0.79824109,3017.1,3017.0,0.0341455]
[1764304794491,0.31034109,3017.1,3017.0,3.34869637]
[1764304794663,1.29684109,3017.1,3017.0,0.0341455]
[1764304794862,1.29684109,3017.1,3017.0,0.001]
[1764304799106,0.79824109,3017.1,3017.0,0.001]
[1764304799298,0.31034109,3017.1,3017.0,0.50523646]
[1764304800668,0.31034109,3017.1,3017.0,0.101]
[1764304801806,0.31034109,3017.1,3017.0,3.41555087]
[1764304802477,0.31034109,3017.1,3017.0,3.91615087]
[1764304805303,0.31034109,3017.1,3017.0,3.81615087]
[1764304806499,1.29684109,3017.1,3017.0,0.001]
[1764304807895,0.31034109,3017.1,3017.0,0.0341455]
[1764304809202,0.31034109,3017.1,3017.0,0.001]
[1764304809410,1.29684109,3017.1,3017.0,0.001]
[1764304810787,1.29884109,3017.1,3017.0,0.001]
[1764304812983,0.31234109,3017.1,3017.0,0.001]
[1764304813321,1.24254109,3017.1,3017.0,0.001]
[1764304822309,0.31234109,3017.1,3017.0,0.001]
[1764304823583,0.78904109,3017.1,3017.0,0.001]
[1764304823808,1.24254109,3017.1,3017.0,0.001]
[1764304826020,0.31234109,3017.1,3017.0,0.001]
[1764304826519,0.31234109,3017.1,3017.0,0.0341455]
[1764304829732,0.31234109,3017.1,3017.0,3.34869637]
[1764304829906,0.31234109,3017.1,3017.0,3.44869637]
[1764304830105,0.78904109,3017.1,3017.0,0.1341455]
[1764304830295,1.24254109,3017.1,3017.0,0.001]
[1764304830624,0.31234109,3017.1,3017.0,0.001]
[1764304831189,0.31234109,3017.1,3017.0,3.31555087]
[1764304831403,0.31234109,3017.1,3017.0,3.34869637]
[1764304832324,0.31234109,3017.1,3017.0,3.31555087]
[1764304833198,0.76584109,3017.1,3017.0,3.31555087]
[1764304834025,0.76649789,3017.1,3017.0,3.31555087]
[1764304836931,1.24319789,3017.1,3017.0,0.001]
[1764304841936,0.31299789,3017.1,3017.0,0.001]
[1764304843239,0.31299789,3017.1,3017.0,0.101]
[1764304843938,0.31299789,3017.1,3017.0,0.001]
[1764304844742,1.26419789,3017.1,3017.0,0.001]
[1764304853244,0.31299789,3017.1,3017.0,0.69875479]
[1764304853649,0.31299789,3017.1,3017.0,1.01175268]
[1764304854428,0.31299789,3017.1,3017.0,1.11175268]
[1764304854643,0.31299789,3017.1,3017.0,1.14489818]
[1764304855049,0.31299789,3017.1,3017.0,5.89569026]
[1764304855233,0.002,3017.1,3017.0,10.34133924]
[1764304855551,0.002,3017.1,3017.0,10.30819374]
[1764304866535,0.002,3017.1,3017.0,10.30508113]
[1764304867738,0.002,3017.4,3017.0,10.30508113]
[1764304867739,0.002,3017.4,3017.1,1.13109811]
[1764304867935,0.002,3017.5,3017.3,10.62645705]
[1764304868242,0.002,3017.5,3017.4,1.03459411]
[1764304868560,0.002,3017.5,3017.4,4.48140176]
[1764304868938,0.002,3017.5,3017.4,4.38140176]
[1764304869161,0.002,3017.5,3017.4,4.88690576]
[1764304869360,0.002,3017.5,3017.4,6.91783501]
[1764304885491,0.4861,3017.5,3017.4,6.91783501]
[1764304885986,0.002,3017.5,3017.4,6.91783501]
[1764304889288,0.4861,3017.5,3017.4,6.91783501]
[1764304889593,0.002,3017.5,3017.4,6.91783501]
[1764304891495,0.002,3017.5,3017.4,8.6927998]
[1764304892694,0.002,3017.5,3017.4,6.91783501]
[1764304892890,0.9504,3017.5,3017.4,6.91783501]
[1764304893091,0.9504,3017.5,3017.4,6.91883501]
[1764304895402,0.9504,3017.5,3017.4,8.6937998]
[1764304897102,0.9504,3017.5,3017.4,8.2882958]
[1764304897277,0.9504,3017.5,3017.4,6.51333101]
[1764304897674,0.9504,3017.5,3017.4,5.44045069]
[1764304898002,1.2612651,3017.5,3017.4,0.13369617]
[1764304898206,1.2612651,3017.5,3017.4,3.44780765]
[1764304898687,1.2612651,3017.5,3017.4,4.17340176]
[1764304902112,1.2612651,3017.5,3017.4,0.85929028]
[1764304902609,1.2612651,3017.5,3017.4,0.001]
[1764304908228,1.2612651,3017.5,3017.4,0.03414111]
[1764304908523,1.2612651,3017.5,3017.4,0.001]
[1764304909117,0.9504,3017.5,3017.4,0.001]
[1764304912499,1.26050082,3017.5,3017.4,0.001]
[1764304922105,0.79620082,3017.5,3017.4,3.41511148]
[1764304922298,0.31210082,3017.5,3017.4,4.63868617]
[1764304922498,0.31210082,3017.5,3017.4,4.67182728]
[1764304923039,1.28180082,3017.5,3017.4,4.67182728]
[1764304923208,1.28180082,3017.5,3017.4,3.31511148]
[1764304923649,1.28180082,3017.5,3017.4,0.001]
[1764304925444,1.49080082,3017.5,3017.4,0.001]
[1764304927814,4.80480247,3017.5,3017.4,0.001]
[1764304928518,4.83789,3017.5,3017.4,0.001]
[1764304928718,5.6530602,3017.5,3017.4,0.001]
[1764304929316,2.13005855,3017.5,3017.4,0.001]
[1764304929539,2.33905855,3017.5,3017.4,0.001]
[1764304929735,1.52388835,3017.5,3017.4,0.001]
[1764304930313,4.83789,3017.5,3017.4,0.001]
[1764304930524,1.52388835,3017.5,3017.4,0.001]
[1764304931211,1.31488835,3017.5,3017.4,0.001]
[1764304931612,1.91488835,3017.5,3017.4,0.001]
[1764304932644,5.22889,3017.5,3017.4,0.001]
[1764304932835,5.7726681,3017.5,3017.4,0.001]
[1764304933857,2.45866645,3017.5,3017.4,0.001]
[1764304934216,5.7726681,3017.5,3017.4,0.001]
[1764304934710,2.45866645,3017.5,3017.4,0.001]
[1764304934945,1.91488835,3017.5,3017.4,0.001]
[1764304937216,0.91210082,3017.5,3017.4,0.001]
[1764304937417,1.36450082,3017.5,3017.4,0.001]
[1764304937642,1.81810082,3017.5,3017.4,0.001]
[1764304943858,1.36570082,3017.5,3017.4,0.001]
[1764304944020,0.31210082,3017.5,3017.4,0.86681828]
[1764304944918,0.31210082,3017.5,3017.4,4.18092976]
[1764304947425,0.31210082,3017.5,3017.4,4.63332976]
[1764304948247,0.31210082,3017.5,3017.4,10.51538886]
[1764304951160,0.002,3017.5,3017.4,10.51538886]
[1764304951459,0.002,3017.5,3017.4,10.10988486]
[1764304951638,0.002,3017.5,3017.4,5.35892387]
[1764304963463,0.002,3017.5,3017.4,5.39206498]
[1764304968190,0.31243512,3017.5,3017.4,5.39206498]
[1764304975059,0.31262986,3017.5,3017.4,5.39206498]
[1764304975586,0.79272986,3017.5,3017.4,5.39206498]
[1764304976885,0.31262986,3017.5,3017.4,5.39206498]
[1764304980694,0.31262986,3017.5,3017.4,10.14302597]
[1764304980901,0.31262986,3017.5,3017.4,10.10988486]
[1764304983905,1.24512986,3017.5,3017.4,5.35892387]
[1764304984074,1.24512986,3017.5,3017.4,4.59310559]
[1764304984801,0.31262986,3017.5,3017.4,4.6262467]
[1764304990611,0.31262986,3017.5,3017.4,9.37402092]
[1764304990781,0.31262986,3017.5,3017.4,9.34087981]
[1764304999317,1.25152986,3017.5,3017.4,1.17899411]
[1764304999518,1.25183511,3017.5,3017.4,1.17899411]
[1764304999700,1.25183511,3017.5,3017.4,0.72659411]
[1764305002422,1.25183511,3017.5,3017.4,0.001]
[1764305002889,1.70840857,3017.5,3017.4,0.001]
[1764305005194,1.25183511,3017.5,3017.4,0.001]
[1764305011052,1.25183511,3017.5,3017.4,0.101]
[1764305012631,1.25129197,3017.5,3017.4,0.101]
[1764305013130,1.25129197,3017.5,3017.4,3.41511148]
[1764305013131,0.31239197,3017.5,3017.4,3.41511148]
[1764305013537,1.25129197,3017.5,3017.4,3.41511148]
[1764305015933,1.25129197,3017.5,3017.4,0.101]
[1764305016305,1.25129197,3017.5,3017.4,0.001]
[1764305019033,1.25131495,3017.5,3017.4,0.001]
[1764305019438,1.74423263,3017.5,3017.4,0.001]
[1764305020539,5.05823428,3017.5,3017.4,0.001]
[1764305020740,1.74423263,3017.5,3017.4,0.001]
[1764305021847,1.28440248,3017.5,3017.4,0.001]
[1764305022051,1.25131495,3017.5,3017.4,0.001]
[1764305033052,0.76651495,3017.5,3017.4,0.001]
[1764305033353,0.76651495,3017.5,3017.4,0.101]
[1764305033516,0.76651495,3017.5,3017.4,3.41511148]
[1764305033722,1.22701495,3017.5,3017.4,3.41511148]
[1764305036953,1.22701495,3017.5,3017.4,4.41063329]
[1764305038555,1.22701495,3017.5,3017.4,1.09652181]
[1764305038757,1.22701495,3017.5,3017.4,4.41063329]
[1764305039253,0.31241495,3017.5,3017.4,5.66121008]
[1764305039424,0.31241495,3017.5,3017.4,11.16771952]
[1764305039629,0.31241495,3017.5,3017.4,11.13457841]
[1764305043430,0.31259967,3017.5,3017.4,11.13457841]
[1764305045026,0.002,3017.5,3017.4,11.13457841]
[1764305046462,0.31245838,3017.5,3017.4,11.03457841]
[1764305046760,0.31245838,3017.5,3017.4,11.13457841]
[1764305047337,0.002,3017.5,3017.4,11.13457841]
[1764305048366,0.9567,3017.5,3017.4,2.97269271]
[1764305048583,1.26709765,3017.5,3017.4,5.0362274]
[1764305049756,1.26709765,3017.5,3017.4,9.78400162]
[1764305050658,1.26709765,3017.5,3017.4,5.0362274]
[1764305053861,0.31239765,3017.5,3017.4,5.0362274]
[1764305054181,0.31239765,3017.5,3017.4,6.47699469]
[1764305055665,1.27319765,3017.5,3017.4,6.47699469]
[1764305058750,0.77539765,3017.5,3017.4,6.47699469]
[1764305058950,1.27319765,3017.5,3017.4,6.37699469]
[1764305059263,1.27319765,3017.5,3017.4,6.47699469]
[1764305061868,0.31239765,3017.5,3017.4,6.47699469]
[1764305065068,1.27319765,3017.5,3017.4,6.47699469]
[1764305065552,0.77539765,3017.5,3017.4,6.47699469]
[1764305067080,1.27319765,3017.5,3017.4,5.1362274]
[1764305069377,1.27319765,3017.5,3017.4,5.0362274]
[1764305083108,1.27375764,3017.5,3017.4,5.0362274]
[1764305087874,0.31295764,3017.5,3017.4,5.1362274]
[1764305088686,0.80265764,3017.5,3017.4,5.1362274]
[1764305088886,1.27945764,3017.5,3017.4,5.1362274]
[1764305089200,1.27945764,3017.5,3017.4,5.16936851]
[1764305089375,0.31295764,3017.5,3017.4,5.1362274]
[1764305089574,0.31295764,3017.5,3017.4,6.03531317]
[1764305091297,0.31295764,3017.5,3017.4,5.16936851]
[1764305094608,0.31295764,3017.5,3017.4,5.1362274]
[1764305095406,1.27945764,3017.5,3017.4,5.1362274]
[1764305096209,1.27945764,3017.5,3017.4,5.0362274]
[1764305102925,1.27945764,3017.5,3017.4,5.1362274]
[1764305103744,0.31295764,3017.5,3017.4,6.03531317]
[1764305105098,0.31295764,3017.5,3017.4,6.00217206]
[1764305107131,0.31295764,3017.5,3017.4,6.03531317]
[1764305107830,0.78975764,3017.5,3017.4,6.03531317]
[1764305108203,0.31295764,3017.5,3017.4,6.03531317]
[1764305112537,0.31295764,3017.5,3017.4,10.78348247]
[1764305112738,0.31295764,3017.5,3017.4,10.75034136]
[1764305114539,0.76845764,3017.5,3017.4,10.75034136]
[1764305114754,1.24045764,3017.5,3017.4,9.8843967]
[1764305115217,1.24045764,3017.5,3017.4,5.1362274]
[1764305115718,1.24045764,3017.5,3017.4,5.16936851]
[1764305117636,0.31295764,3017.5,3017.4,5.16936851]
[1764305119733,0.002,3017.5,3017.4,10.32304181]
[1764305119940,0.002,3017.5,3017.4,12.32770803]
[1764305120139,0.002,3017.8,3017.4,12.32770803]
[1764305120140,0.002,3017.8,3017.7,10.32193271]
[1764305120443,0.002,3017.8,3017.7,12.31027262]
[1764305120945,0.002,3017.8,3017.7,12.44295866]
[1764305121245,0.002,3017.8,3017.7,13.97740076]
[1764305121415,0.002,3017.8,3017.7,15.92501455]
[1764305124439,0.002,3017.8,3017.7,16.33051855]
[1764305125928,0.002,3017.8,3017.7,11.58234925]
[1764305126129,0.002,3017.8,3017.7,11.17684525]
[1764305126332,0.9295,3017.8,3017.7,11.17684525]
[1764305126538,0.9295,3017.8,3017.7,3.75546805]
[1764305126726,0.9295,3017.8,3017.7,3.65546805]
[1764305126945,0.9295,3017.8,3017.7,4.38106216]
[1764305127419,0.9295,3017.8,3017.7,9.12923146]
[1764305127623,0.9295,3017.8,3017.7,9.22923146]
[1764305131523,0.9295,3017.8,3017.7,4.38106216]
[1764305132752,0.9295,3017.8,3017.7,4.41424115]
[1764305134448,0.9295,3017.8,3017.7,9.26241045]
[1764305134974,0.4575,3017.8,3017.7,10.52004065]
[1764305135148,0.9295,3017.8,3017.7,10.52004065]
[1764305135540,0.002,3017.8,3017.7,10.52004065]
[1764305140870,0.9424,3017.8,3017.7,10.52004065]
[1764305144389,0.9424,3017.8,3017.7,9.26241045]
[1764305146223,0.9424,3017.8,3017.7,9.22923146]
[1764305151383,0.9424,3017.8,3017.7,4.48106216]
[1764305152113,1.25285261,3017.8,3017.7,4.48106216]
[1764305152281,0.9424,3017.8,3017.7,4.48106216]
[1764305152713,0.002,3017.8,3017.7,5.73547446]
[1764305153006,0.9424,3017.8,3017.7,5.76861228]
[1764305153211,1.25289963,3017.8,3017.7,5.76861228]
[1764305154010,1.25289963,3017.8,3017.7,4.38106216]
[1764305155814,1.25289963,3017.8,3017.7,0.13268604]
[1764305155978,1.25289963,3017.8,3017.5,0.001]
[1764305156186,0.4832,3017.6,3017.5,0.13373447]
[1764305156518,0.4832,3017.5,3017.1,0.001]
[1764305156716,0.4832,3017.2,3017.0,0.001]
[1764305156881,0.79369963,3017.1,3017.0,0.001]
[1764305157077,0.79369963,3017.1,3017.0,0.99664736]
[1764305157318,1.25089963,3017.1,3017.0,0.001]
[1764305157683,4.56534064,3017.1,3017.0,0.001]
[1764305157998,5.37420594,3017.1,3017.0,0.001]
[1764305163092,5.5069955,3017.1,3017.0,0.001]
[1764305164714,5.54008303,3017.1,3017.0,0.001]
[1764305166321,5.40729347,3017.1,3017.0,0.001]
[1764305170720,5.54008699,3017.1,3017.0,0.001]
[1764305171307,5.94559099,3017.1,3017.0,0.001]
[1764305171626,5.74908699,3017.1,3017.0,0.001]
[1764305172122,5.74730485,3017.1,3017.0,0.001]
[1764305173494,2.22386384,3017.1,3017.0,0.001]
[1764305173700,5.61451133,3017.1,3017.0,0.001]
[1764305173915,4.80564603,3017.1,3017.0,0.001]
[1764305175221,4.59664603,3017.1,3017.0,0.001]
[1764305175415,4.80564603,3017.1,3017.0,0.001]
[1764305176305,4.80764603,3017.1,3017.0,0.001]
[1764305176508,5.61984386,3017.1,3017.0,0.001]
[1764305181928,4.95364386,3017.1,3017.0,0.001]
[1764305182127,5.61844386,3017.1,3017.0,0.001]
[1764305185310,6.33348187,3017.1,3017.0,0.001]
[1764305189923,6.12448187,3017.1,3017.0,0.001]
[1764305190139,5.39448187,3017.1,3017.0,0.001]
[1764305190345,6.32808187,3017.1,3017.0,0.001]
[1764305191818,1.87104086,3017.1,3017.0,0.001]
[1764305192036,1.2347555,3017.1,3017.0,0.001]
[1764305192216,1.26784303,3017.1,3017.0,0.001]